Cogmind - Beta 14 @@@ ROGUE MODE // 2024.12.10 @ 20:14:32 Player: Duduxx Result: Self-destructed Performance ------------- Evolutions (2) 1000 Regions Visited (3) 600 Robots Destroyed (20) 100 Value Destroyed (573) 573 Prototype IDs (0) 0 Alien Tech Used (0) 0 Bonus (0) 0 TOTAL SCORE: 2273 Bonus ------- None Cogmind --------- Core Integrity 500/550 Matter 269/300 Energy 261/310 System Corruption 0% Temperature Critical (619) Movement Core (1000) Ox19 Location -8/Materials Parts ------- > --- POWER (2) -------- Ion Engine Light Nuclear Core > --- PROPULSION (3) --- Light Treads > --- UTILITY (4) ------ Heat Sink High-capacity Storage Unit > --- WEAPON (2) ------- Beam Rifle Particle Cannon > --- INVENTORY (20) --- VTOL Module Small Storage Unit Advanced Weight Redist. System Advanced Weight Redist. System Advanced Weight Redist. System Signal Interpreter Shield Generator Peak State ------------ > --- POWER ------------ Ion Engine Light Nuclear Core > --- PROPULSION ------- Light Treads Light Treads Light Treads > --- UTILITY ---------- Heat Sink High-capacity Storage Unit Light Armor Plating Hardlight Generator > --- WEAPON ----------- Beam Rifle Particle Cannon > --- INVENTORY -------- Light Treads Light Treads VTOL Module Small Storage Unit Advanced Weight Redist. System Advanced Weight Redist. System Signal Interpreter Shield Generator [Rating: 18] Favorites ----------- Power Light Nuclear Core Engine Ion Engine Power Core Light Nuclear Core Propulsion Light Treads Treads Light Treads Utility Heat Sink Device Heat Sink Storage High-capacity Storage Unit Protection Light Armor Plating Weapon Medium Laser Energy Gun Medium Laser Energy Cannon Particle Cannon Build | -11 -10 -9 -8 ------- Run | Yrd Mat Mat Mat Slots Evolved 4 | . . 2 2 Power 1 | . . . 1 Propulsion 1 | . . 1 . Utility 2 | . . 1 1 Weapon . | . . . . Parts Attached 23 | 6 2 9 6 Power 4 | 1 1 . 2 Engine 2 | 1 . . 1 Core 2 | . 1 . 1 Reactor . | . . . . Propulsion 6 | 2 . 2 2 Treads 6 | 2 . 2 2 Leg . | . . . . Wheel . | . . . . Hover . | . . . . Flight . | . . . . Utility 9 | 1 1 5 2 Device 5 | . 1 3 1 Storage 3 | 1 . 2 . Processor . | . . . . Hackware . | . . . . Protection 1 | . . . 1 Artifact . | . . . . Weapon 4 | 2 . 2 . Energy Gun 3 | 2 . 1 . Energy Cannon 1 | . . 1 . Ballistic Gun . | . . . . Ballistic Cannon . | . . . . Launcher . | . . . . Special Weapon . | . . . . Impact Weapon . | . . . . Slashing Weapon . | . . . . Piercing Weapon . | . . . . Special Melee Weapon . | . . . . Unidentified Prototypes . | . . . . Parts Lost 8 | . . 1 7 Power 1 | . . . 1 Propulsion 4 | . . . 4 Utility 2 | . . . 2 Weapon 1 | . . 1 . Highest Loss Streak 4 | . . 1 4 To Critical Strikes . | . . . . Average Slot Usage (%) 94 | . 97 94 87 Engine 3 | . 8 . 6 Core 9 | . 6 11 8 Treads 28 | . 28 29 25 Device 17 | . 11 20 16 Storage 11 | . 14 11 9 Energy Gun 20 | . 28 18 9 Energy Cannon 3 | . . 3 9 Peak Build Rating 18 | 6 9 15 18 Average Rating 10 | 5 7 11 16 On Entrance 7 | . 6 9 15 Naked Turns . | . . . . Heaviest Build 66 | 14 15 55 66 Greatest Support 66 | 40 40 66 60 Greatest Overweight (x) 1 | 1 . . 1 Average Overweight (x) . | . . . . Largest Inventory Capacity 20 | 8 8 20 20 Average Capacity 13 | 7 8 15 20 Most Carried 9 | 1 2 9 9 Average Carried 3 | . 1 4 7 Final Capacity 20 | 8 8 20 20 Final Carried 8 | 1 2 8 7 Class Distribution -------------------- 66% | Mutant 33% | Scavenger-Mutant Dominant Class ---------------- Mutant | -10/Materials Mutant | -9/Materials Scavenger-Mutant | -8/Materials Resources | -11 -10 -9 -8 ----------- Run | Yrd Mat Mat Mat Matter Collected 366 | 218 58 90 . Remotely . | . . . . Salvage Created 807 | 5 138 509 155 Parts 42 | . 6 30 6 Haulers Intercepted 2 | . . 1 1 Recyclers Shooed 2 | . . 1 1 Parts Field Recycled . | . . . . Retrieved Matter . | . . . . Parts Self-Destructed . | . . . . Prevented . | . . . . Kills | -11 -10 -9 -8 ------- Run | Yrd Mat Mat Mat Combat Hostiles Destroyed 14 | . 3 8 3 Guns 11 | . 3 6 2 Cannons 3 | . . 2 1 Classes Destroyed 7 | 1 1 4 1 Tunneler 1 | 1 . . . Hauler 2 | . . 1 1 Recycler 1 | . . 1 . Watcher 2 | . . 2 . Swarmer 1 | . . . 1 Grunt 10 | . 3 5 2 Sentry 3 | . . 3 . Best Kill Streak 4 | 1 2 4 3 Combat Bots Only 3 | . 2 2 3 Max Kills in Single Turn 1 | 1 1 1 1 Gunslinging . | . . . . Exploded . | . . . . Melee . | . . . . Uniques/NPCs Destroyed . | . . . . Combat | -11 -10 -9 -8 -------- Run | Yrd Mat Mat Mat Hostile Shots Fired 166 | . 24 49 93 Missed 41 | . 6 14 21 Damage Taken 1345 | . 226 390 729 Core 137 | . 63 24 50 Absorbed by Shields 315 | . . 63 252 Core Remaining (%) 89 | 100 74 94 . Volleys Fired 73 | . 15 40 18 Largest 2 | . 2 2 2 Hottest 124 | . 100 124 124 Shots Fired 134 | . 30 68 36 Gun 101 | . 30 53 18 Cannon 33 | . . 15 18 Launcher . | . . . . Special . | . . . . Kinetic . | . . . . Thermal 134 | . 30 68 36 Explosive . | . . . . Electromagnetic . | . . . . Robot Hit Streak 10 | . 8 10 4 Robot Miss Streak 3 | . 3 3 3 Penetration Max . | . . . . Secondary Targets 2 | . 1 1 . Max Gunslinging Chain 1 | . 1 1 . Shots Hit Robots 83 | . 21 44 18 Core Hits 33 | . 6 20 7 Critical Kills . | . . . . Critical Parts Destroyed . | . . . . Critical Strikes 6 | . 2 3 1 Burn 6 | . 2 3 1 Melee Attacks . | . . . . Impact . | . . . . Slashing . | . . . . Piercing . | . . . . Sneak Attacks . | . . . . Combat Hostiles . | . . . . Follow-up Attacks . | . . . . Damage Inflicted 1291 | . 265 693 333 Guns 857 | . 265 462 130 Cannons 407 | . . 204 203 Explosions . | . . . . Melee . | . . . . Ramming 27 | . . 27 . Kinetic . | . . . . Thermal 1264 | . 265 666 333 Explosive . | . . . . Electromagnetic . | . . . . Impact . | . . . . Slashing . | . . . . Piercing . | . . . . Highest Corruption 2 | . . 2 . Average Corruption 1 | . . 1 . Corruption Purged . | . . . . Corruption Blocked . | . . . . Effects 5 | . . 5 . Message Errors 1 | . . 1 . Matter Fused 2 | . . 2 . Heat Flow Errors 1 | . . 1 . Weapon Failures 1 | . . 1 . Overload Shots . | . . . . Overflow Damage . | . . . . Projectiles . | . . . . Explosions . | . . . . Melee . | . . . . Knockbacks . | . . . . Impact . | . . . . Kinetic . | . . . . Secondary . | . . . . Self-Inflicted Damage . | . . . . Shots . | . . . . Rammed 3 | 1 . 2 . Targets Rammed 4 | 2 . 2 . Kicked . | . . . . Crushed 1 | 1 . . . Highest Temperature 619 | . 258 147 619 Average Temperature 102 | . 102 38 225 Received Heat Transfer 740 | . 165 182 393 Effects 6 | . . . 6 Shutdowns 3 | . . . 3 Short Circuit 2 | . . . 2 Damage (minor) 1 | . . . 1 Siege Activations . | . . . . Robots Corrupted . | . . . . Combat Hostiles . | . . . . Parts Fried . | . . . . Impact Corruptions . | . . . . Robots Melted . | . . . . Combat Hostiles . | . . . . Parts Melted 8 | . 2 5 1 Heat Transferred 3626 | . 925 1924 777 Parts Sabotaged . | . . . . Parts Stolen . | . . . . Parts Stripped . | . . . . Power Chain Reactions . | . . . . Alert | -11 -10 -9 -8 ------- Run | Yrd Mat Mat Mat Peak Influence 191 | 5 74 191 91 Initial 49 | . 3 31 49 Average 75 | . 46 106 61 Maximum Alert Level . | . . . . Low Security (%) 100 | 100 100 100 100 Level 1 . | . . . . Level 2 . | . . . . Level 3 . | . . . . Level 4 . | . . . . Level 5 . | . . . . High Security . | . . . . Max Security . | . . . . Squads Dispatched 1 | . . 1 . Investigation 1 | . . 1 . Extermination . | . . . . Reinforcement . | . . . . Assault . | . . . . Garrison . | . . . . Intercept . | . . . . Searches Triggered . | . . . . Construction Impeded . | . . . . Haulers Reinforced . | . . . . Active Scanning Responses . | . . . . Cargo Convoy Interrupts . | . . . . Stealth | -11 -10 -9 -8 --------- Run | Yrd Mat Mat Mat Distress Signals 2 | . . 2 . Communications Jammed . | . . . . Distress Signals . | . . . . Times Spotted 29 | . 4 13 12 Peak Tracking Total 9 | . 3 3 9 Tactical Retreats 1 | . . 1 . Traps | -11 -10 -9 -8 ------- Run | Yrd Mat Mat Mat Traps Triggered 3 | . . 3 . Indirectly . | . . . . Trap Hack Attempts . | . . . . Triggered . | . . . . Disarmed . | . . . . Reprogrammed . | . . . . Reused . | . . . . Traps Extracted . | . . . . Installed . | . . . . Triggered . | . . . . Machines | -11 -10 -9 -8 ---------- Run | Yrd Mat Mat Mat Machines Disabled . | . . . . Max in Single Turn . | . . . . Machines Repaired . | . . . . Machines Dismantled . | . . . . Machines Sabotaged . | . . . . Overloaded Fab Kills . | . . . . Hacking | -11 -10 -9 -8 --------- Run | Yrd Mat Mat Mat Machines Accessed 1 | . . 1 . Terminals . | . . . . Fabricators . | . . . . Repair Stations . | . . . . Recycling Units . | . . . . Scanalyzers 1 | . . 1 . Garrison Access . | . . . . Total Hacks 2 | . . 2 . Successful . | . . . . Failed 2 | . . 2 . Catastrophic . | . . . . Database Lockouts . | . . . . Manual . | . . . . Terminals . | . . . . Fabricators . | . . . . Repair Stations . | . . . . Recycling Units . | . . . . Scanalyzers 2 | . . 2 . Garrison Access . | . . . . Terminal Hacks . | . . . . Fabricator Hacks . | . . . . Repair Station Hacks . | . . . . Recycling Unit Hacks . | . . . . Scanalyzer . | . . . . Garrison Access Hacks . | . . . . Unauthorized Hacks . | . . . . Terminals . | . . . . Fabricators . | . . . . Repair Stations . | . . . . Recycling Units . | . . . . Scanalyzers . | . . . . Garrison Access . | . . . . Data Cores Recovered . | . . . . Used . | . . . . Hacking Detections 1 | . . 1 . Full Trace Events . | . . . . Feedback Events . | . . . . Feedback Blocked . | . . . . Robot Schematics Acquired . | . . . . Robots Built . | . . . . Authchips . | . . . . Time . | . . . . Total Robot Build Rating . | . . . . Part Schematics Acquired . | . . . . Parts Built . | . . . . Authchips . | . . . . Time . | . . . . Total Part Build Rating . | . . . . Parts Repaired . | . . . . Time . | . . . . Parts Recycled . | . . . . Recycled Matter . | . . . . Retrieved Matter . | . . . . Retrieved Components . | . . . . Parts Scanalyzed . | . . . . Part Schematics Acquired . | . . . . Parts Damaged . | . . . . Bothacking | -11 -10 -9 -8 ------------ Run | Yrd Mat Mat Mat Used RIF Installer . | . . . . Robots Hacked . | . . . . Non-combat . | . . . . Combat . | . . . . Robot Hacks Applied . | . . . . Relay Couplers Released . | . . . . Fabnet Peak Effective % . | . . . . Robots Rewired . | . . . . Allies Hacked . | . . . . Hacks Repelled . | . . . . Allies | -11 -10 -9 -8 -------- Run | Yrd Mat Mat Mat Total Allies . | . . . . Largest Group . | . . . . Highest-Rated Group . | . . . . Highest-Rated Ally . | . . . . Total Orders . | . . . . Ally Attacks . | . . . . Total Damage . | . . . . Kills . | . . . . Allies Corrupted . | . . . . Allies Melted . | . . . . Intel | -11 -10 -9 -8 ------- Run | Yrd Mat Mat Mat Robot Analysis Total . | . . . . Derelict Logs Recovered . | . . . . Drone Launches . | . . . . Drone Recoveries . | . . . . Exploration | -11 -10 -9 -8 ------------- Run | Yrd Mat Mat Mat Turns Passed 1056 | 88 279 551 138 Spaces Moved 485 | 49 143 256 37 Core 4 | 4 . . . Treads 481 | 45 143 256 37 Legs . | . . . . Wheels . | . . . . Hover . | . . . . Flight . | . . . . Fastest Speed 50 | 50 160 160 160 Average Speed 162 | 154 160 160 194 Slowest Speed 240 | 160 160 160 240 Overloaded Moves . | . . . . Propulsion Burnouts . | . . . . Robots Hopped . | . . . . Cave-ins Triggered . | . . . . Exploration Rate (%) 17 | 5 27 30 7 Regions Visited 3 Branch Regions . Pre-discovered Areas . | . . . . Known Exits Taken . | . . . . Unknown Exits Taken 3 | 1 1 1 . Scrap Searched . | . . . . Spaces Dug . | . . . . Terrain Destroyed . | . . . . Melee . | . . . . Projectile . | . . . . AOE . | . . . . Terrain Rammed . | . . . . Walls Destroyed . | . . . . Machines Disabled . | . . . . Actions | -11 -10 -9 -8 --------- Run | Yrd Mat Mat Mat Total 613 | 57 163 326 67 Wait 13 | . 2 10 1 Move 482 | 48 142 255 37 Hop . | . . . . Pick Up 11 | 1 1 6 3 Fast Attach 11 | 6 1 2 2 Attach 6 | . . 2 4 Detach 2 | . . 1 1 Swap 6 | . 1 5 . Drop 5 | . 1 3 1 Fire 73 | . 15 40 18 Melee . | . . . . Ram . | . . . . Kick . | . . . . Crush 4 | 2 . 2 . Escape Stasis . | . . . . Rewire . | . . . . Trap . | . . . . Miscellaneous . | . . . . Route ------- -11/Scrapyard -10/Materials -9/Materials -8/Materials History --------- Turn | Location | Event 16 | -11/Scrapyard | Discovered new exit (range 16) 89 | -11/Scrapyard | Entered Materials 301 | -10/Materials | Build established: Mutant 344 | -10/Materials | Discovered new exit (range 16) 368 | -10/Materials | Entered another Materials area 368 | -9/Materials | Evolved 2 slots: Propulsion x1, Utility x1 810 | -9/Materials | Discovered new exit (range 16) 919 | -9/Materials | Entered another Materials area 919 | -8/Materials | Evolved 2 slots: Power x1, Utility x1 1041 | -8/Materials | Lost 3 parts (1p2n) 1057 | -8/Materials | Self-destructed Last Messages --------------- 01047_ R-06 Scavenger collects Weight Redist. System. 01048_ R-06 Scavenger inserts Weight Redist. System into recycling unit. 01051_ Power failure, Lgt. Nuclear Core shutdown. 01051_ G-47 Trooper heat short circuits Imp. Heat Sink. 01051_ Critical hit (Burn: +37). 01051_ G-47 Trooper destroyed. 01052_ Lgt. Treads broken. 01052_ Overheating: Short circuit. 01052_ Critical hit (Burn: +37). 01052_ Lgt. Armor Plating destroyed. 01053_ Overheating: Heat Sink damaged (-11). 01055_ Beam Rifle broken. 01055_ Overheating: Short circuit. 01055_ R-06 Scavenger collects Lgt. Assault Rifle. 01056_ Power failure, Ion Engine shutdown. Map ----- +----------------------------------------------------+ | ???????????????????????????????????????? | | ???????????????????????????????????????? | | ???????????????????????????????????????? | | ???????????????????????????????????????? | | ???????????????????????????????????????? | | ???????????????????????????????????????? | | ???????????????????????????????????????? | | ???????????????????????????????????????? | | ???????????????????????????????????????? | | ???????????????????????????????????????? | | ??????????##+#?????????????????????????? | | ?????????? #????????????????????????? | | ?????????? #????????????????????????? | | ?????????? #????????????????????????? | | ??????????# #????????????????????????? | | ??????????# #????????? ??????????????? | | ??????????# #???????? ?????????????? | | ?????????## ##????? ??????????????? | | ?????????# ##### ????????????????? | | ?????????# ??????????????????? | | ?????????+ ????????????????????? | | ?????????# = ??????????????????????? | | ?????????# % #???????????????????????? | | ??????????# ###########??????????????? | | ????????### # #??????????????? | | ??????### # % #@r "Y" #??????????????? | | ??# [ ss% """ #??????????????? | | ???# # g#= #??????????????? | | ???## # ###########??????????????? | | ????####### #############????????????? | | ??????# ?????????? | | ??????# ?????????? | | ??????# ?????????? | | ??????######+###### ####+###???????????? | | ????????# #??#??????????????????? | | ????????# #?????????????????????? | | ????????# #?????????????????????? | | ????????# #?????????????????????? | | ????????# #?????????????????????? | | ????????# ! #?????????????????????? | | ????????# #?????????????????????? | | ????????# #?????????????????????? | | ????????# #?????????????????????? | | ????????##########?????????????????????? | | ???????????????????????????????????????? | | ???????????????????????????????????????? | | ???????????????????????????????????????? | | ???????????????????????????????????????? | | ???????????????????????????????????????? | | ???????????????????????????????????????? | +----------------------------------------------------+ Best States ------------- Heat Dissipation 41 Energy Generation 19 Energy Capacity 310 Matter Stores 300 Matter Capacity 300 Sight Range 16 Terrain Scan Density 10 Additional Mass Support 6 Armor Coverage 150 Evasion (%) 40 Recoil Reduction 3 Item Schematics ----------------- None Robot Schematics ------------------ None Fabricated ------------ Nothing Alien Tech Used ----------------- None Achievements -------------- None Challenges ------------ None Game ------ Seed MeleeNuclearClaw Manual? 0 Play Time 00:08:35 Cumulative 77.9 hours Start 2024.12.10 @ 20:02:05 End 2024.12.10 @ 20:14:32 Sessions 1 Manual Loads 0 Difficulty Rogue Special Mode None Game No. 158 Rogue 158 Adventurer 0 Explorer 0 Win Type - Total 0 Types 0/0/0/0/0/0/0/0/0 Lore% 22 Gallery% 41 Achievement% 33 Wizard Run 0 Options --------- Layout 1 ASCII 0 Keyboard 1 Movement Arrows Keybinds 0 Fullscreen 1 Font 24/Smallcaps Map View 50x35 Zoom Use 0% Tactical HUD 1 Map Filters NONE Filters NONE Steam 1 RUN: f9062f63-1f8d-434f-a080-bbd375d4f708